bitfinex-derivatives/quotes_SOLF0:USTF0_20251020
["timestamp","ask_amount","ask_price","bid_price","bid_amount"]
[1760934397746,2.19611531,190.9,190.87,7.21]
[1760934397950,2.19611531,190.9,190.89,2.72]
[1760934398246,2.19611531,190.9,190.88,2.72]
[1760934403044,7.08426395,190.9,190.87,4.49]
[1760934403252,7.08426395,190.88,190.87,4.49]
[1760934403449,9.02426395,190.88,190.87,4.49]
[1760934403756,2.19611531,190.88,190.87,7.21]
[1760934406650,3.43096531,190.9,190.87,7.21]
[1760934406853,3.43096531,190.9,190.88,2.72]
[1760934407361,3.43096531,190.9,190.88,2.83]
[1760934407657,3.43096531,190.9,190.89,2.83]
[1760934408155,4.88814864,190.91,190.89,2.83]
[1760934408355,8.31911395,190.92,190.88,2.83]
[1760934408555,8.31911395,190.92,190.89,2.83]
[1760934408754,8.31911395,190.92,190.87,4.49]
[1760934409061,3.43096531,190.92,190.87,9.2041]
[1760934409659,3.43096531,190.92,190.88,2.83]
[1760934410056,3.43096531,190.92,190.87,9.2041]
[1760934410356,4.88814864,190.93,190.87,9.2041]
[1760934410957,4.88814864,190.93,190.88,2.83]
[1760934411358,4.88814864,190.93,190.87,9.2041]
[1760934412053,4.88814864,190.95,190.89,2.83]
[1760934412253,4.88814864,190.95,190.88,2.83]
[1760934412951,4.88814864,190.95,190.89,4.7134]
[1760934413150,4.88814864,190.95,190.91,2.83]
[1760934413458,4.88814864,190.95,190.89,4.7134]
[1760934413653,4.88814864,190.95,190.91,2.83]
[1760934413854,4.88814864,190.95,190.85,5.17]
[1760934413855,4.88814864,190.95,190.9,4.7131]
[1760934414059,4.88814864,190.95,190.91,2.83]
[1760934414353,4.88814864,190.96,190.92,2.83]
[1760934414559,6.81814864,190.96,190.92,2.83]
[1760934414853,4.88814864,190.96,190.9,4.7131]
[1760934415062,6.52443702,190.98,190.92,2.83]
[1760934415063,4.88814864,190.98,190.92,2.83]
[1760934415256,4.88814864,190.98,190.91,4.7129]
[1760934415257,4.88814864,190.97,190.91,4.7129]
[1760934415560,1.93001475,191.07,190.95,2.83]
[1760934415758,1.93,191.07,190.98,2.83]
[1760934416154,1.93,191.07,191.01,7.5406]
[1760934416860,1.93,191.07,191.02,9.3]
[1760934417061,1.93,191.09,191.02,9.3]
[1760934417861,3.43096531,191.2,191.02,6.47]
[1760934417862,3.43096531,191.11,191.02,6.47]
[1760934418061,1.93,191.07,191.02,6.47]
[1760934418261,3.43096531,191.08,191.02,6.47]
[1760934418565,1.93,191.07,191.02,6.47]
[1760934418765,1.93,191.06,191.02,6.47]
[1760934419667,4.7093,191.07,191.02,6.47]
[1760934420260,1.93,191.06,191.02,6.47]
[1760934420457,4.7093,191.07,191.02,6.47]
[1760934421063,1.93,191.06,191.02,6.47]
[1760934421363,1.93,191.04,191.02,6.47]
[1760934421966,1.93,191.07,191.02,6.47]
[1760934422165,10.07006531,191.08,191.02,6.47]
[1760934422368,5.36096531,191.08,191.02,6.47]
[1760934423570,44.3,191.1,191.02,9.3]
[1760934425067,44.3,191.1,191.03,2.83]
[1760934427970,6.6379,191.12,191.03,2.83]
[1760934429565,1.93,191.11,191.03,2.83]
[1760934430371,44.28,191.15,191.03,2.83]
[1760934430572,10.06786531,191.17,191.05,2.83]
[1760934430972,6.6369,191.17,191.08,2.83]
[1760934431466,6.6369,191.17,191.1,2.83]
[1760934431467,1.93,191.17,191.1,2.83]
[1760934431671,10.06706531,191.2,191.1,2.83]
[1760934431868,5.36096531,191.2,191.1,2.83]
[1760934432075,1.93,191.2,191.11,4.7082]
[1760934432270,1.93,191.2,191.12,2.83]
[1760934433473,1.93,191.2,191.09,4.14]
[1760934433667,1.93,191.18,191.09,4.14]
[1760934433873,3.43096531,191.17,191.09,4.14]
[1760934434076,1.93,191.16,191.09,4.14]
[1760934434373,3.43096531,191.14,191.09,4.14]
[1760934434583,1.93,191.12,191.09,4.14]
[1760934434880,1.93,191.1,191.09,4.14]
[1760934435574,3.43096531,191.14,191.09,4.14]
[1760934435879,1.93,191.12,191.09,4.14]
[1760934436176,1.93,191.12,191.1,4.9]
[1760934436373,1.93,191.13,191.1,4.9]
[1760934436577,1.93,191.12,191.1,4.9]
[1760934436780,5.36096531,191.14,191.1,4.9]
[1760934436972,1.93,191.13,191.1,4.9]
[1760934437777,3.43096531,191.14,191.1,4.9]
[1760934437778,1.93,191.12,191.1,4.9]
[1760934438276,3.43096531,191.14,191.1,4.9]
[1760934438480,1.93,191.13,191.1,4.9]
[1760934438874,1.93,191.12,191.1,4.9]
[1760934440271,1.93,191.16,191.1,4.9]
[1760934440477,1.93,191.14,191.1,4.9]
[1760934440676,1.93,191.13,191.1,4.9]
[1760934441382,8.13816531,191.15,191.1,4.9]
[1760934441578,1.93,191.14,191.1,4.9]
[1760934442082,8.13816531,191.15,191.1,4.9]
[1760934442686,1.93,191.14,191.1,4.9]
[1760934443981,3.43096531,191.16,191.1,4.9]
[1760934444486,8.13796531,191.16,191.1,4.9]
[1760934444684,3.43096531,191.16,191.1,4.9]
[1760934445780,1.93,191.11,191.1,4.9]
[1760934446788,1.93,191.1,191.04,2.85]
[1760934446987,5.36096531,191.1,191.04,2.85]
[1760934447382,5.36096531,191.1,190.97,2.85]
[1760934447785,4.7087,191.09,190.98,2.85]
[1760934448487,9.54,191.13,190.98,2.85]
[1760934448488,5.36096531,191.07,190.98,2.85]
[1760934449091,4.7097,191.05,190.98,2.85]
[1760934449385,4.7097,191.05,190.99,1.7]
[1760934449782,6.6397,191.05,190.99,1.7]
[1760934450985,4.7097,191.05,190.99,1.7]
[1760934451187,4.7091,191.08,191.0,2.85]
[1760934452594,4.7094,191.07,191.0,2.85]
[1760934452789,6.6394,191.07,191.0,2.85]
[1760934452989,3.43096531,191.1,190.99,1.7]
[1760934452990,1.93,191.06,190.99,1.7]
[1760934453194,4.7097,191.05,190.99,4.55]
[1760934456384,1.93,191.02,190.99,1.7]
[1760934456589,4.7102,191.03,191.0,2.85]
[1760934456790,6.6402,191.03,190.99,1.7]
[1760934456987,6.6402,191.03,190.99,4.55]
[1760934458295,4.7096,191.06,190.99,4.55]
[1760934458590,4.7096,191.06,191.0,2.85]
[1760934463492,4.7099,191.05,190.99,5.13096531]
[1760934463994,1.93,191.1,191.0,2.85]
[1760934464497,8.37631491,191.1,191.0,2.85]
[1760934464695,1.93,191.1,191.0,2.85]
[1760934465593,6.44631491,191.11,191.0,2.85]
[1760934465789,1.93,191.1,191.0,2.85]
[1760934465994,6.6392,191.07,191.0,2.85]
[1760934466699,6.6392,191.07,191.0,5.04186297]
[1760934468997,4.7092,191.07,191.03,2.62]
[1760934469197,1.93,191.06,191.03,2.62]
[1760934469399,6.6392,191.07,191.03,2.62]
[1760934470700,1.93,191.07,191.03,2.62]
[1760934470905,1.93,191.07,191.04,4.31]
[1760934471093,6.6387,191.09,191.05,2.62]
[1760934472102,1.93,191.08,191.05,2.62]
[1760934476208,1.93,191.06,191.04,1.69]
[1760934476710,4.7092,191.07,191.04,1.69]
[1760934477108,1.93,191.06,191.04,1.69]
[1760934478111,4.7092,191.07,191.04,1.69]
[1760934478412,1.93,191.06,191.04,1.69]
[1760934478614,9.58601846,191.07,191.04,1.69]
[1760934478912,1.93,191.05,191.04,1.69]
[1760934479318,6.80681846,191.05,191.04,1.69]
[1760934480809,4.87681846,191.05,191.04,1.69]
[1760934481015,4.87681846,191.06,191.04,1.69]
[1760934481216,4.87681846,191.07,191.04,4.38]
[1760934481615,4.87681846,191.06,191.05,4.88186297]
[1760934481823,4.87681846,191.1,191.06,2.69]
[1760934482119,4.87681846,191.12,191.09,2.69]
[1760934482422,4.87681846,191.12,191.11,2.19186297]
[1760934483622,14.41681846,191.13,191.11,2.19186297]
[1760934484015,4.87681846,191.13,191.11,2.19186297]
[1760934484423,4.87681846,191.13,191.12,2.69]
[1760934485421,4.87681846,191.14,191.12,2.69]
[1760934485616,4.87681846,191.14,191.13,2.19186297]
[1760934486627,4.87681846,191.14,191.07,2.69]
[1760934486827,4.87681846,191.14,191.12,2.19186297]
[1760934487629,4.87681846,191.14,191.11,2.69]
[1760934488324,4.87681846,191.14,191.1,2.19186297]
[1760934488526,4.87681846,191.14,191.11,2.69]
[1760934489329,4.87681846,191.14,191.1,2.19186297]
[1760934489525,4.87681846,191.16,191.12,2.19186297]
[1760934489731,4.87681846,191.18,191.14,2.69]
[1760934489926,4.87681846,191.2,191.17,2.19186297]
[1760934490127,4.87681846,191.2,191.18,2.69]
[1760934490325,4.87681846,191.19,191.12,2.19186297]
[1760934490529,4.87681846,191.19,191.07,2.69]
[1760934490530,6.80681846,191.14,191.07,2.69]
[1760934490835,4.87681846,191.13,191.08,2.19186297]
[1760934491035,1.93,191.13,191.09,2.69]
[1760934491332,6.6377,191.13,191.09,2.69]
[1760934491632,11.51451846,191.13,191.09,2.69]
[1760934491829,9.58451846,191.13,191.06,9.29186297]
[1760934492433,4.7077,191.13,191.06,9.29186297]
[1760934493537,4.7077,191.13,191.06,7.1]
[1760934493934,9.58451846,191.13,191.06,7.1]
[1760934495342,9.58451846,191.13,191.07,4.90186297]
[1760934495838,11.52451846,191.13,191.08,4.41]
[1760934496441,1.94,191.12,191.08,4.41]
[1760934498439,1.94,191.12,191.08,1.7]
[1760934498742,1.94,191.12,191.08,4.36]
[1760934498942,1.94,191.12,191.08,1.7]
[1760934499445,6.81975061,191.12,191.08,4.36]
[1760934503243,4.87975061,191.12,191.08,1.7]
[1760934503448,9.58745061,191.13,191.09,2.66]
[1760934503642,1.94,191.12,191.09,2.66]
[1760934504540,1.94,191.12,191.08,1.7]
[1760934504738,1.94,191.11,191.08,1.7]
[1760934505845,4.7084,191.1,191.08,1.7]
[1760934507251,4.7084,191.1,191.08,4.36]
[1760934507549,1.94,191.11,191.08,4.36]
[1760934507950,1.94,191.11,191.08,2.66]
[1760934510350,1.94,191.11,191.09,1.7]
[1760934510750,6.44631491,191.14,191.1,2.66]
[1760934510751,4.87975061,191.14,191.1,2.66]
[1760934510947,4.87975061,191.13,191.1,2.66]
[1760934512855,1.94,191.12,191.09,1.7]
[1760934514153,1.94,191.12,191.09,4.36]
[1760934514351,4.87975061,191.13,191.09,1.7]
[1760934514657,1.94,191.11,191.09,1.7]
[1760934514856,4.87975061,191.12,191.09,1.7]
[1760934514857,7.07161358,191.12,191.09,1.7]
[1760934515155,1.94,191.11,191.09,1.7]
[1760934515852,1.94,191.1,191.09,1.7]
[1760934516052,1.94,191.09,191.06,4.20934873]
[1760934516257,1.94,191.07,191.06,4.873e-05]
[1760934516455,6.6492,191.07,191.06,4.873e-05]
[1760934517054,7.6892,191.07,191.06,4.873e-05]
[1760934517254,7.6892,191.07,190.93,4.85186297]
[1760934517255,1.94,191.01,190.93,4.85186297]
[1760934518650,6.6509,191.01,190.93,4.85186297]
[1760934519551,6.6509,191.01,190.93,2.66]
[1760934519552,2.19186297,191.0,190.93,2.66]
[1760934519748,1.94,191.01,190.89,2.66]
[1760934519749,1.94,190.97,190.89,2.66]
[1760934519949,2.19186297,190.96,190.89,2.66]
[1760934520149,2.19186297,190.96,190.89,8.23]
[1760934520950,4.7124,190.94,190.89,8.23]
[1760934521152,4.7124,190.94,190.9,2.66]
[1760934522257,2.19186297,190.96,190.9,2.66]
[1760934523157,6.6522,190.95,190.9,2.66]
[1760934523353,6.6522,190.95,190.89,5.57]
[1760934523554,6.90336297,190.98,190.9,2.66]
[1760934523761,6.90336297,190.98,190.9,4.85186297]
[1760934523762,2.19186297,190.98,190.9,4.85186297]
[1760934523954,2.19186297,190.98,190.9,2.66]
[1760934524657,2.19186297,190.98,190.92,2.66]
[1760934526362,2.19186297,190.96,190.89,8.23]
[1760934527263,2.19186297,190.98,190.9,2.63]
[1760934527461,44.16,191.01,190.89,7.76186297]
[1760934527462,2.19186297,191.0,190.92,2.63]
[1760934528056,4.13186297,191.0,190.92,2.63]
[1760934528655,1.94,191.0,190.92,2.63]
[1760934528860,6.6511,191.0,190.92,2.63]
[1760934529062,6.6511,191.0,190.92,6.05781773]
[1760934533666,4.7103,191.03,190.96,2.63]
[1760934535860,1.94,191.04,190.96,2.63]
[1760934536259,1.94,191.04,190.98,3.42781773]
[1760934540871,1.94,191.04,190.96,2.63]
[1760934542069,1.94,191.04,190.97,6.04]
[1760934543567,4.7102,191.03,190.97,6.04]
[1760934543771,1.94,191.04,190.97,6.04]
[1760934543966,1.94,191.03,190.97,6.04]
[1760934544570,1.94,191.0,190.97,6.04]
[1760934544966,4.7111,191.0,190.97,6.04]
[1760934545169,3.42781773,191.02,190.97,6.04]
[1760934545469,1.94,191.0,190.97,6.04]
[1760934545671,1.94,191.01,190.97,6.04]
[1760934546070,1.94,190.98,190.97,6.04]
[1760934546774,1.94,190.93,190.85,2.63]
[1760934546963,3.42781773,190.99,190.85,2.63]
[1760934547168,4.7118,190.97,190.87,3.42781773]
[1760934547466,4.7118,190.97,190.88,2.63]
[1760934550271,4.7118,190.97,190.9,2.63]
[1760934550878,4.7121,190.95,190.9,2.63]
[1760934551079,4.7121,190.95,190.89,0.41]
[1760934551284,4.7121,190.95,190.9,2.63]
[1760934551579,4.7121,190.95,190.89,0.41]
[1760934552081,4.7121,190.95,190.9,2.63]
[1760934552581,4.7121,190.95,190.89,0.41]
[1760934553282,4.7121,190.95,190.9,2.82]
[1760934553580,4.7116,190.97,190.9,2.82]
[1760934554083,4.711,191.0,190.9,2.82]
[1760934555182,6.651,191.0,190.9,2.82]
[1760934556083,4.7113,190.99,190.9,2.82]
[1760934556384,8.29703995,191.01,190.9,2.82]
[1760934556584,1.94,191.0,190.9,2.82]
[1760934556981,4.7116,190.98,190.9,2.82]
[1760934557583,1.94,190.97,190.9,2.82]
[1760934560293,4.7116,190.98,190.9,4.7131]
[1760934560499,4.7116,190.98,190.91,2.84]
[1760934562196,9.58002222,191.01,190.92,2.84]
[1760934562391,4.7108,191.01,190.92,2.84]
[1760934563693,4.7108,191.01,190.94,2.84]
[1760934568402,1.94,191.02,190.95,4.7121]
[1760934568598,1.94,191.02,190.96,2.84]
[1760934569000,4.7101,191.03,190.96,2.84]
[1760934570206,11.51892222,191.05,190.96,2.84]
[1760934570503,11.51892222,191.05,190.97,2.84]
[1760934573310,9.94238218,191.08,190.99,2.84]
[1760934573311,6.80922222,191.08,190.99,2.84]
[1760934573606,1.94,191.08,190.99,2.84]
[1760934574309,4.86922222,191.09,190.99,2.84]
[1760934574504,1.94,191.08,190.99,2.84]
[1760934574999,4.86922222,191.09,190.99,2.84]
[1760934575399,1.94,191.08,190.99,2.84]
[1760934575603,4.7094,191.06,190.99,2.84]
[1760934575805,6.80922222,191.07,190.92,2.84]
[1760934576006,4.86922222,191.07,190.93,2.84]
[1760934576205,1.94,191.05,190.93,2.84]
[1760934577102,4.7099,191.04,190.96,7.5517]
[1760934577599,1.94,191.02,190.96,2.84]
[1760934578409,6.6497,191.05,190.96,2.84]
[1760934579212,6.6497,191.05,190.97,4.7116]
[1760934579413,1.94,191.05,190.98,2.84]
[1760934579906,1.94,191.04,190.98,2.84]
[1760934580110,4.86922222,191.07,190.95,7.5521]
[1760934580311,4.86922222,191.05,190.95,7.5521]
[1760934580513,1.94,191.04,190.95,7.5521]
[1760934581114,6.6501,191.04,190.95,7.5521]
[1760934581610,6.6501,191.04,190.96,2.84]
[1760934582010,4.7103,191.03,190.96,2.84]
[1760934582309,1.94,191.02,190.96,2.84]
[1760934583112,4.7097,191.05,190.96,2.84]
[1760934584012,4.7097,191.05,190.96,7.5518]
[1760934584514,1.94,191.04,190.96,7.5518]
[1760934586709,6.6501,191.04,190.96,7.5518]
[1760934590815,2.19302992,191.01,190.97,2.64]
[1760934591010,2.19302992,191.01,190.98,2.64]
[1760934592617,2.19302992,191.01,190.97,2.64]
[1760934593719,4.13302992,191.01,190.96,4.7118]
[1760934593922,4.13302992,191.01,190.97,2.64]
[1760934594222,2.19302992,191.01,190.97,2.64]
[1760934594421,2.19302992,191.01,190.96,4.7118]
[1760934594720,2.19302992,191.01,190.98,2.64]
[1760934595716,2.19302992,191.01,190.96,4.7118]
[1760934596617,2.19302992,191.01,190.97,2.64]
[1760934597419,2.19302992,191.01,190.98,2.64]
[1760934597815,4.86922222,191.06,190.96,2.64]
[1760934597816,4.13302992,190.99,190.96,2.64]
[1760934598022,4.13302992,190.99,190.95,2.64]
[1760934598212,4.13302992,190.99,190.94,4.7123]
[1760934598411,2.19302992,190.99,190.94,4.7123]
[1760934598616,2.19302992,190.99,190.95,2.64]
[1760934599020,2.19302992,190.99,190.96,2.64]
[1760934599721,2.19302992,190.99,190.95,4.7119]
[1760934600021,2.19302992,190.99,190.96,2.64]
[1760934600217,2.19302992,190.99,190.95,4.7119]
[1760934600518,2.19302992,190.99,190.96,2.64]
[1760934600720,2.19302992,190.99,190.97,2.64]
[1760934601215,2.19302992,191.01,190.97,2.64]
[1760934601420,2.19302992,191.01,190.98,2.64]
[1760934601816,2.19302992,191.01,190.96,4.7117]
[1760934602021,2.19302992,191.01,190.97,2.64]
[1760934602418,2.19302992,191.01,190.98,2.64]
[1760934602821,4.13302992,191.01,190.98,2.64]
[1760934603927,1.94,191.01,190.98,2.64]
[1760934604124,4.13302992,191.01,190.98,2.64]
[1760934604522,9.57932222,191.04,190.97,2.64]
[1760934604718,4.86922222,191.04,190.98,2.19302992]
[1760934604921,7.06225214,191.07,190.99,2.64]
[1760934605229,4.86922222,191.06,190.99,2.64]
[1760934605525,7.06225214,191.07,190.99,2.64]
[1760934606023,4.86922222,191.07,191.01,2.64]
[1760934606830,6.80922222,191.08,191.01,2.64]
[1760934607017,6.80922222,191.08,191.02,2.19302992]
[1760934607018,4.86922222,191.08,191.02,2.19302992]
[1760934607222,4.86922222,191.1,191.03,2.64]
[1760934608028,8.84142992,191.11,191.03,2.64]
[1760934608424,6.6484,191.11,191.03,2.64]
[1760934608626,1.94,191.1,191.03,2.64]
[1760934610134,1.94,191.1,191.04,2.19302992]
[1760934610531,6.80922222,191.13,191.06,4.83302992]
[1760934610735,6.80922222,191.13,191.08,2.19302992]
[1760934610937,4.86922222,191.13,191.09,2.64]
[1760934611137,1.94,191.12,191.09,2.64]
[1760934612534,6.81922222,191.15,191.08,5.02302992]
[1760934613540,1.95,191.15,191.08,5.02302992]
[1760934613729,1.95,191.15,191.08,2.19302992]
[1760934613930,13.71875214,191.18,191.1,2.19302992]
[1760934615138,13.71875214,191.18,191.11,2.83]
[1760934615440,1.95,191.18,191.11,2.83]
[1760934615634,1.95,191.18,191.11,7.5381]
[1760934616035,1.95,191.18,191.12,2.19302992]
[1760934616431,1.95,191.18,191.13,2.83]
[1760934617034,1.95,191.18,191.12,2.19302992]
[1760934617434,1.93,191.22,191.15,2.7]
[1760934617840,2.19302992,191.19,191.13,2.7]
[1760934619338,4.12302992,191.2,191.13,2.7]
[1760934620837,1.93,191.2,191.14,2.19302992]
[1760934621035,1.93,191.2,191.15,2.7]
[1760934621343,1.93,191.2,191.14,4.89302992]
[1760934622938,6.89852992,191.22,191.14,2.19302992]
[1760934623144,6.89852992,191.22,191.15,2.7]
[1760934625644,2.19302992,191.22,191.15,4.7071]
[1760934625839,1.93,191.23,191.16,2.19302992]
[1760934626041,1.93,191.23,191.17,2.7]
[1760934627444,1.93,191.23,191.17,7.4065]
[1760934627643,2.19302992,191.25,191.19,2.7]
[1760934628842,1.93,191.26,191.19,2.7]
[1760934629046,1.93,191.29,191.21,2.7]
[1760934629349,1.93,191.28,191.21,2.7]
[1760934634653,1.93,191.28,191.21,7.4055]
[1760934636447,1.93,191.28,191.21,2.7]
[1760934636850,1.93,191.28,191.22,2.19302992]
[1760934637546,1.93,191.34,191.21,2.7]
[1760934637751,4.12302992,191.35,191.27,2.7]
[1760934637957,1.93,191.34,191.27,2.7]
[1760934638255,1.93,191.33,191.26,2.19302992]
[1760934638458,1.93,191.33,191.25,4.7047]
[1760934638648,2.19302992,191.32,191.25,4.7047]
[1760934639154,1.93,191.31,191.24,2.7]
[1760934639758,1.93,191.31,191.25,2.7]
[1760934640153,1.93,191.31,191.25,4.89302992]
[1760934640855,1.93,191.34,191.26,2.7]
[1760934641052,1.93,191.34,191.27,2.19302992]
[1760934642151,1.93,191.34,191.28,2.7]
[1760934642552,4.12302992,191.37,191.29,4.89302992]
[1760934642951,1.93,191.36,191.29,2.7]
[1760934643151,2.19302992,191.35,191.29,2.7]
[1760934644053,1.93,191.36,191.29,2.7]
[1760934645352,1.93,191.36,191.29,4.89302992]
[1760934645557,1.93,191.36,191.29,9.59672992]
[1760934646061,2.19302992,191.38,191.3,2.7]
[1760934646354,1.93,191.39,191.32,2.7]
[1760934647354,1.93,191.39,191.33,2.19302992]
[1760934647855,1.93,191.39,191.34,2.68]
[1760934648060,1.93,191.39,191.26,2.68]
[1760934648254,2.19302992,191.41,191.34,2.68]
[1760934648463,1.93,191.42,191.34,2.68]
[1760934648661,2.19302992,191.41,191.34,2.68]
[1760934648862,1.93,191.4,191.34,2.68]
[1760934651962,4.701,191.41,191.31,4.703]
[1760934652157,3.41273773,191.38,191.31,2.68]
[1760934652360,1.93,191.37,191.31,2.68]
[1760934652858,1.93,191.41,191.31,2.68]
[1760934653463,1.93,191.41,191.34,2.68]
[1760934654366,4.7004,191.43,191.34,2.68]
[1760934654667,6.6304,191.43,191.34,2.68]
[1760934654963,6.6304,191.43,191.35,2.68]
[1760934655164,1.93,191.43,191.37,2.68]
[1760934656465,1.93,191.43,191.37,7.3817]
[1760934656668,80.82218682,191.46,191.38,2.68]
[1760934656959,76.12238682,191.46,191.38,2.68]
[1760934657855,76.12238682,191.46,191.39,4.7012]
[1760934658053,3.41273773,191.51,191.39,4.7012]
[1760934658258,18.71759778,191.51,191.39,4.7012]
[1760934658458,47.31273773,191.52,191.4,2.68]
[1760934658662,1.93,191.51,191.4,2.68]
[1760934659266,1.93,191.49,191.4,6.09273773]
[1760934660569,1.93,191.49,191.4,8.11353773]
[1760934660762,1.93,191.49,191.41,2.68]
[1760934662164,1.93,191.49,191.41,7.3807]
[1760934662363,1.93,191.49,191.4,3.41273773]
[1760934662364,1.93,191.49,191.42,2.68]
[1760934662666,1.93,191.57,191.47,2.68]
[1760934663461,1.93,191.57,191.48,3.41273773]
[1760934663666,1.93,191.62,191.49,2.68]
[1760934663973,47.29273773,191.63,191.49,2.68]
[1760934664274,59.57115878,191.63,191.49,2.68]
[1760934664571,1.93,191.62,191.52,2.68]
[1760934665173,6.6257,191.62,191.52,2.68]
[1760934665967,1.93,191.62,191.52,2.68]
[1760934666765,3.41273773,191.61,191.35,9.4041]
[1760934666962,1.93,191.57,191.36,43.86]
[1760934667166,1.93,191.56,191.44,2.68]
[1760934667571,4.6973,191.55,191.47,2.68]
[1760934668174,1.93,191.54,191.47,2.68]
[1760934669572,6.6268,191.58,191.48,2.68]
[1760934672074,33.4926534,191.64,191.5,2.68]
[1760934672075,1.93,191.63,191.5,2.68]
[1760934672273,1.93,191.62,191.5,2.68]
[1760934673169,1.93,191.62,191.54,2.84]
[1760934673676,15.43368594,191.66,191.56,2.84]
[1760934673677,1.94,191.66,191.56,2.84]
[1760934674478,1.94,191.66,191.58,2.84]
[1760934674673,1.94,191.7,191.59,2.84]
[1760934675280,1.94,191.7,191.6,2.84]
[1760934675478,1.94,191.69,191.6,2.84]
[1760934676181,1.94,191.69,191.6,7.536]
[1760934676772,1.94,191.69,191.61,2.84]
[1760934677475,1.93,191.71,191.57,6.00273773]
[1760934677673,3.41273773,191.72,191.57,6.00273773]
[1760934677874,1.93,191.71,191.57,6.00273773]
[1760934678474,4.6943,191.67,191.57,2.59]
[1760934678778,1.93,191.66,191.57,2.59]
[1760934680281,1.93,191.66,191.58,2.59]
[1760934681674,6.6246,191.66,191.58,2.59]
[1760934682778,3.41273773,191.65,191.5,3.41273773]
[1760934682983,1.93,191.63,191.51,2.59]
[1760934683783,5.34273773,191.63,191.54,2.59]
[1760934684487,3.41273773,191.66,191.56,2.59]
[1760934684779,1.93,191.67,191.57,2.59]
[1760934685679,3.41273773,191.69,191.57,2.59]
[1760934685880,1.93,191.65,191.57,2.59]
[1760934686976,4.6951,191.64,191.57,2.59]
[1760934687174,1.93,191.63,191.53,6.00273773]
[1760934687376,1.93,191.64,191.53,2.59]
[1760934687679,3.41273773,191.7,191.53,2.59]
[1760934687680,1.93,191.61,191.53,2.59]
[1760934690580,3.41273773,191.59,191.49,2.59]
[1760934691185,3.41273773,191.59,191.51,2.59]
[1760934691986,1.93,191.58,191.51,2.59]
[1760934692687,1.93,191.57,191.48,4.699]
[1760934692986,9.3884,191.68,191.47,2.59]
[1760934692987,1.93,191.55,191.47,2.59]
[1760934693782,6.6275,191.55,191.47,2.59]
[1760934696085,1.93,191.53,191.43,7.29]
[1760934696384,1.93,191.53,191.25,15.72]
[1760934696385,1.93,191.49,191.4,2.59]
[1760934696699,3.41273773,191.44,191.35,2.59]
[1760934697589,1.93,191.45,191.35,2.59]
[1760934697892,5.34273773,191.53,191.39,2.59]
[1760934698280,5.34273773,191.53,191.41,3.41273773]
[1760934698588,1.93,191.53,191.42,2.59]
[1760934698886,1.93,191.53,191.44,4.6999]
[1760934699086,8.22844116,191.57,191.42,2.59]
[1760934699493,1.93,191.56,191.42,2.59]
[1760934699693,8.22844116,191.57,191.42,2.59]